Cogmind - Beta 14 @@@ ROGUE MODE // 2024.11.18 @ 20:22:47 Player: Fangrelle Result: Destroyed by YI-UF0 with YI-UF0's Doublenader Performance ------------- Evolutions (0) 0 Regions Visited (2) 400 Robots Destroyed (26) 130 Value Destroyed (478) 478 Prototype IDs (0) 0 Alien Tech Used (0) 0 Bonus (0) 0 TOTAL SCORE: 1008 Bonus ------- None Cogmind --------- Core Integrity 0/250 Matter 274/300 Energy 100/100 System Corruption 0% Temperature Cool (0) Movement Walking (260) Ox2 Location -10/Mines Parts ------- > --- POWER (1) -------- (None) > --- PROPULSION (2) --- Aluminum Leg Aluminum Leg > --- UTILITY (2) ------ High-capacity Storage Unit > --- WEAPON (2) ------- Assault Rifle > --- INVENTORY (20) --- Compact Wheel Small Storage Unit Large Storage Unit Compact Matter Pod (150) Compact Matter Pod (150) Compact Matter Pod (150) Signal Interpreter Improved Terrain Scanner Propulsion Shielding Authchip [Processor] Small Laser Light Assault Rifle Mini Grenade Launcher Mining Laser Plasma Cutter Peak State ------------ > --- POWER ------------ Light Nuclear Core > --- PROPULSION ------- Aluminum Leg Aluminum Leg > --- UTILITY ---------- High-capacity Storage Unit Tractor Beam > --- WEAPON ----------- EM Pulse Gun Assault Rifle > --- INVENTORY -------- Light Ion Engine Compact Wheel Small Storage Unit Large Storage Unit Compact Matter Pod Compact Matter Pod Compact Matter Pod Signal Interpreter Improved Terrain Scanner Propulsion Shielding Authchip [Processor] Small Laser Assault Rifle Assault Rifle Light Assault Rifle Mini Grenade Launcher Mining Laser Plasma Cutter [Rating: 12] Favorites ----------- Power Light Ion Engine Engine Light Ion Engine Power Core Light Nuclear Core Propulsion Light Treads Treads Light Treads Leg Aluminum Leg Wheel Compact Wheel Utility High-capacity Storage Unit Device Improved Terrain Scanner Storage High-capacity Storage Unit Processor Signal Interpreter Weapon Assault Rifle Energy Gun Small Laser Ballistic Gun Assault Rifle Ballistic Cannon Light Cannon Special Weapon Mining Laser Build | -11 -10 -10 ------- Run | Yrd Mat Min Slots Evolved . | . . . Power . | . . . Propulsion . | . . . Utility . | . . . Weapon . | . . . Parts Attached 20 | 1 12 7 Power 2 | . . 2 Engine 1 | . . 1 Core 1 | . . 1 Reactor . | . . . Propulsion 5 | . 3 2 Treads 2 | . 2 . Leg 2 | . . 2 Wheel 1 | . 1 . Hover . | . . . Flight . | . . . Utility 5 | 1 3 1 Device 2 | 1 . 1 Storage 2 | . 2 . Processor 1 | . 1 . Hackware . | . . . Protection . | . . . Artifact . | . . . Weapon 8 | . 6 2 Energy Gun 1 | . 1 . Energy Cannon . | . . . Ballistic Gun 4 | . 2 2 Ballistic Cannon 1 | . 1 . Launcher . | . . . Special Weapon 2 | . 2 . Impact Weapon . | . . . Slashing Weapon . | . . . Piercing Weapon . | . . . Special Melee Weapon . | . . . Unidentified Prototypes . | . . . Parts Lost 10 | . 3 7 Power 3 | . 1 2 Propulsion 2 | . 1 1 Utility 1 | . . 1 Weapon 4 | . 1 3 Highest Loss Streak 6 | . 2 6 To Critical Strikes . | . . . Average Slot Usage (%) 93 | . 92 98 Engine 11 | . 13 . Core 1 | . . 13 Treads 16 | . 18 1 Leg 4 | . 1 25 Wheel 1 | . 1 1 Device 3 | . 1 12 Storage 14 | . 14 14 Processor 10 | . 12 1 Energy Gun 9 | . 9 13 Ballistic Gun 11 | . 11 14 Ballistic Cannon 4 | . 5 . Special Weapon 1 | . 1 . Peak Build Rating 12 | 9 9 12 Average Rating 8 | 7 7 11 On Entrance 7 | 6 9 8 Naked Turns . | . . . Heaviest Build 50 | 11 48 50 Greatest Support 40 | 20 40 20 Greatest Overweight (x) 2 | . 2 2 Average Overweight (x) 1 | . 1 2 Largest Inventory Capacity 20 | 8 20 20 Average Capacity 18 | 8 18 20 Most Carried 18 | 8 17 18 Average Carried 13 | 6 13 16 Final Capacity 20 | 8 20 20 Final Carried 17 | 7 17 15 Class Distribution -------------------- 100% | Mutant Dominant Class ---------------- Mutant | -10/Materials Mutant | -10/Mines Resources | -11 -10 -10 ----------- Run | Yrd Mat Min Matter Collected 572 | 200 314 58 Remotely 52 | . . 52 Salvage Created 611 | 94 465 52 Parts 54 | 7 40 7 Haulers Intercepted . | . . . Recyclers Shooed 1 | . 1 . Parts Field Recycled . | . . . Retrieved Matter . | . . . Parts Self-Destructed . | . . . Prevented . | . . . Kills | -11 -10 -10 ------- Run | Yrd Mat Min Combat Hostiles Destroyed 17 | . 14 3 Guns 13 | . 10 3 Cannons 3 | . 3 . AOE 1 | . 1 . Classes Destroyed 7 | 2 5 . Worker 3 | . 3 . Tunneler 1 | 1 . . Recycler 1 | 1 . . Operator 1 | . 1 . Watcher 3 | . 3 . Swarmer 9 | . 6 3 Grunt 8 | . 8 . Best Kill Streak 8 | 2 8 3 Combat Bots Only 8 | . 8 3 Max Kills in Single Turn 2 | 1 2 2 Gunslinging 1 | . . 1 Exploded 1 | . 1 . Melee . | . . . Uniques/NPCs Destroyed . | . . . Combat | -11 -10 -10 -------- Run | Yrd Mat Min Hostile Shots Fired 115 | . 85 30 Missed 33 | . 22 11 Damage Taken 1368 | . 786 582 Core 255 | . 132 123 Absorbed by Shields . | . . . Core Remaining (%) 100 | 100 . . Volleys Fired 69 | 3 56 10 Largest 2 | 2 2 2 Hottest 120 | 80 120 60 Shots Fired 132 | 6 109 17 Gun 98 | 6 75 17 Cannon 27 | . 27 . Launcher . | . . . Special 7 | . 7 . Kinetic 72 | . 60 12 Thermal 49 | 6 43 . Explosive . | . . . Electromagnetic 11 | . 6 5 Robot Hit Streak 10 | 4 10 7 Robot Miss Streak 4 | . 4 4 Penetration Max . | . . . Secondary Targets 2 | . 1 1 Max Gunslinging Chain 1 | . 1 1 Shots Hit Robots 74 | 4 62 8 Core Hits 35 | 3 28 4 Critical Kills . | . . . Critical Parts Destroyed . | . . . Critical Strikes . | . . . Melee Attacks . | . . . Impact . | . . . Slashing . | . . . Piercing . | . . . Sneak Attacks . | . . . Combat Hostiles . | . . . Follow-up Attacks . | . . . Damage Inflicted 1114 | 45 977 92 Guns 699 | 45 562 92 Cannons 328 | . 328 . Explosions 87 | . 87 . Melee . | . . . Ramming . | . . . Kinetic 606 | . 546 60 Thermal 375 | 45 330 . Explosive . | . . . Electromagnetic 133 | . 101 32 Impact . | . . . Slashing . | . . . Piercing . | . . . Highest Corruption . | . . . Average Corruption . | . . . Corruption Purged . | . . . Corruption Blocked . | . . . Overload Shots . | . . . Overflow Damage . | . . . Projectiles . | . . . Explosions . | . . . Melee . | . . . Knockbacks 5 | . 5 . Impact . | . . . Kinetic 5 | . 5 . Secondary . | . . . Self-Inflicted Damage 71 | . 71 . Shots 2 | . 2 . Rammed . | . . . Targets Rammed . | . . . Kicked . | . . . Crushed . | . . . Highest Temperature 201 | 36 201 30 Average Temperature 67 | 22 75 15 Received Heat Transfer 249 | . 249 . Siege Activations . | . . . Robots Corrupted . | . . . Combat Hostiles . | . . . Parts Fried . | . . . Impact Corruptions . | . . . Robots Melted . | . . . Combat Hostiles . | . . . Parts Melted . | . . . Heat Transferred 775 | 100 675 . Parts Sabotaged . | . . . Parts Stolen . | . . . Parts Stripped . | . . . Power Chain Reactions 2 | . 2 . Alert | -11 -10 -10 ------- Run | Yrd Mat Min Peak Influence 189 | 10 189 103 Initial 43 | . 6 43 Average 86 | 9 86 100 Maximum Alert Level . | . . . Low Security (%) 100 | 100 100 100 Level 1 . | . . . Level 2 . | . . . Level 3 . | . . . Level 4 . | . . . Level 5 . | . . . High Security . | . . . Max Security . | . . . Squads Dispatched 3 | . 3 . Investigation 2 | . 2 . Extermination . | . . . Reinforcement 1 | . 1 . Assault . | . . . Garrison . | . . . Intercept . | . . . Searches Triggered . | . . . Construction Impeded . | . . . Haulers Reinforced . | . . . Active Scanning Responses . | . . . Cargo Convoy Interrupts . | . . . Stealth | -11 -10 -10 --------- Run | Yrd Mat Min Distress Signals 1 | . 1 . Communications Jammed . | . . . Distress Signals . | . . . Times Spotted 22 | . 18 4 Peak Tracking Total 5 | . 5 3 Tactical Retreats . | . . . Traps | -11 -10 -10 ------- Run | Yrd Mat Min Traps Triggered 2 | . 2 . Indirectly . | . . . Trap Hack Attempts . | . . . Triggered . | . . . Disarmed . | . . . Reprogrammed . | . . . Reused . | . . . Traps Extracted . | . . . Installed . | . . . Triggered . | . . . Machines | -11 -10 -10 ---------- Run | Yrd Mat Min Machines Disabled 1 | . 1 . Max in Single Turn 1 | . 1 . Machines Repaired . | . . . Machines Dismantled . | . . . Machines Sabotaged . | . . . Overloaded Fab Kills . | . . . Hacking | -11 -10 -10 --------- Run | Yrd Mat Min Machines Accessed 10 | . 10 . Terminals 8 | . 8 . Fabricators . | . . . Repair Stations . | . . . Recycling Units 2 | . 2 . Scanalyzers . | . . . Garrison Access . | . . . Total Hacks 29 | . 29 . Successful 20 | . 20 . Failed 9 | . 9 . Catastrophic . | . . . Database Lockouts . | . . . Manual 26 | . 26 . Terminals 23 | . 23 . Fabricators . | . . . Repair Stations . | . . . Recycling Units 6 | . 6 . Scanalyzers . | . . . Garrison Access . | . . . Terminal Hacks 2 | . 2 . Robot Analysis 1 | . 1 . Terminal Index 1 | . 1 . Fabricator Hacks . | . . . Repair Station Hacks . | . . . Recycling Unit Hacks 2 | . 2 . Retrieve Components 2 | . 2 . Scanalyzer . | . . . Garrison Access Hacks . | . . . Unauthorized Hacks 16 | . 16 . Terminals 14 | . 14 . Assimilate 4 | . 4 . Botnet 7 | . 7 . Operators 1 | . 1 . Skim 2 | . 2 . Fabricators . | . . . Repair Stations . | . . . Recycling Units 2 | . 2 . Tunnel 2 | . 2 . Scanalyzers . | . . . Garrison Access . | . . . Data Cores Recovered . | . . . Used . | . . . Hacking Detections 9 | . 9 . Full Trace Events . | . . . Feedback Events . | . . . Feedback Blocked . | . . . Robot Schematics Acquired . | . . . Robots Built . | . . . Authchips . | . . . Time . | . . . Total Robot Build Rating . | . . . Part Schematics Acquired . | . . . Parts Built . | . . . Authchips . | . . . Time . | . . . Total Part Build Rating . | . . . Parts Repaired . | . . . Time . | . . . Parts Recycled . | . . . Recycled Matter . | . . . Retrieved Matter . | . . . Retrieved Components 13 | . 13 . Parts Scanalyzed . | . . . Part Schematics Acquired . | . . . Parts Damaged . | . . . Bothacking | -11 -10 -10 ------------ Run | Yrd Mat Min Used RIF Installer . | . . . Robots Hacked . | . . . Non-combat . | . . . Combat . | . . . Robot Hacks Applied . | . . . Relay Couplers Released . | . . . Fabnet Peak Effective % . | . . . Robots Rewired . | . . . Allies Hacked . | . . . Hacks Repelled . | . . . Allies | -11 -10 -10 -------- Run | Yrd Mat Min Total Allies . | . . . Largest Group . | . . . Highest-Rated Group . | . . . Highest-Rated Ally . | . . . Total Orders . | . . . Ally Attacks . | . . . Total Damage . | . . . Kills . | . . . Allies Corrupted . | . . . Allies Melted . | . . . Intel | -11 -10 -10 ------- Run | Yrd Mat Min Robot Analysis Total 1 | . 1 . Derelict Logs Recovered 1 | . . 1 Drone Launches . | . . . Drone Recoveries . | . . . Exploration | -11 -10 -10 ------------- Run | Yrd Mat Min Turns Passed 2086 | 33 1825 228 Spaces Moved 718 | 16 629 73 Core . | . . . Treads 458 | . 458 . Legs 157 | 16 68 73 Wheels 103 | . 103 . Hover . | . . . Flight . | . . . Fastest Speed 120 | 120 120 260 Average Speed 231 | 120 230 260 Slowest Speed 320 | 120 320 260 Overloaded Moves . | . . . Propulsion Burnouts . | . . . Robots Hopped . | . . . Cave-ins Triggered . | . . . Exploration Rate (%) 38 | 3 94 18 Regions Visited 2 Branch Regions 1 Pre-discovered Areas 2 | . 2 . Known Exits Taken 1 | . 1 . Unknown Exits Taken 1 | 1 . . Scrap Searched . | . . . Spaces Dug 4 | . 4 . Terrain Destroyed 10 | . 10 . Melee . | . . . Projectile 7 | . 7 . AOE 3 | . 3 . Terrain Rammed . | . . . Walls Destroyed . | . . . Machines Disabled . | . . . Actions | -11 -10 -10 --------- Run | Yrd Mat Min Total 996 | 24 876 96 Wait 165 | . 165 . Move 716 | 15 628 73 Hop . | . . . Pick Up 18 | 3 11 4 Fast Attach 3 | 1 2 . Attach 9 | . 2 7 Detach 2 | . 1 1 Swap 8 | . 8 . Drop 6 | 2 3 1 Fire 69 | 3 56 10 Melee . | . . . Ram . | . . . Kick . | . . . Crush . | . . . Escape Stasis . | . . . Rewire . | . . . Trap . | . . . Miscellaneous . | . . . Route ------- -11/Scrapyard -10/Materials (discovered 4 exits: *Mat x3 / *Min) -10/Mines History --------- Turn | Location | Event 11 | -11/Scrapyard | Discovered new exit (range 3) 34 | -11/Scrapyard | Entered Materials 163 | -10/Materials | Discovered new exit (range 3) 252 | -10/Materials | Discovered new exit (range 9) 311 | -10/Materials | Build established: Mutant 578 | -10/Materials | Discovered new exit (range 5) 881 | -10/Materials | Destroyed 8 combat bots 971 | -10/Materials | Discovered new exit (range 9) 1586 | -10/Materials | Identified exit to Materials 1781 | -10/Materials | Core integrity fell below 50% 1858 | -10/Materials | Identified exit to Mines 1859 | -10/Materials | Entered Mines 2063 | -10/Mines | Learned Materials emergency access door positions 2080 | -10/Mines | Core integrity fell below 20% 2087 | -10/Mines | Destroyed by YI-UF0 with YI-UF0's Doublenader Last Messages --------------- 01878_ Discarded Signal Interpreter. 01880_ Acquired 12 matter. 01880_ Acquired 20 matter. 01887_ Acquired Lgt. Assault Rifle. 01918_ R-06 Scavenger collects Flight Unit. 01945_ Extracted 6 matter. 01956_ Acquired Com. Matter Pod. 02063_ Acquired derelict log, extracted data. Data stored: Materials emergency access points. 02071_ EM Pulse Gun destroyed. 02073_ K-01 Serf collects debris. 02077_ Lgt. Nuclear Core destroyed. 02077_ Assault Rifle destroyed. 02077_ Tractor Beam destroyed. 02079_ The unstable cave ceiling collapses. 02081_ K-01 Serf collects debris. 02082_ The unstable cave ceiling collapses. 02084_ K-01 Serf collects debris. 02085_ Lgt. Ion Engine destroyed. 02085_ Assault Rifle destroyed. Map ----- +----------------------------------------------------+ | ??????????????????????????????# #???? | | ??????????????????????????????# ! ! #???? | | ??????????????????????????????# ! !! #???? | | ?????????????????????????????## #???? | | ???????????????????????????### ! ! #???? | | ??????????????????????????## #???? | | ??????????????????????????# ####???? | | ??????????????????????????# ##???##?? | | ??????????????????????????## ###????? ## | | ???????????????????????????## ##???????# | | ????????????????????????????# #????????# | | ?????????????????############ ########## | | ?????????????????# | | ?????????????????# ###### ###### ########= | | ?????????????????# #????# #????# #??????## | | ?????????????????# #????# ????# ???????# | | ?????????????????# #???? ???####??????? | | ?????????????????# ##### #???????????? | | ?????????????????# #??????????? | | ?????????????????# #### #??????????? | | ??????????????#### ####? #??????????? | | ?????????????## # [%[ #?????????? | | ?????????????# ## ??????? | | ?????????????# #?????? | | ?????????# ## %= ?????? | | ?????????# @ g ?????? | | ?????????# $ ?????? | | ?????????##### ###????????? | | ?????????????# % k #????????? | | ?????????????## [ ## #???????? | | ??????????????# ## # ##??# ! ???????? | | ??????????????##??## #?????? ???????? | | ????????????????????? ##???????? ???????? | | ?????????????????????###?????????????????? | | ?????????????????????????????????????????? | | ?????????????????????????????????????????? | | ?????????????????????????????????????????? | | ?????????????????????????????????????????? | | ?????????????????????????????????????????? | | ?????????????????????????????????????????? | | ?????????????????????????????????????????? | | ?????????????????????????????????????????? | | ?????????????????????????????????????????? | | ?????????????????????????????????????????? | | ?????????????????????????????????????????? | | ?????????????????????????????????????????? | | ?????????????????????????????????????????? | | ?????????????????????????????????????????? | | ?????????????????????????????????????????? | | ?????????????????????????????????????????? | +----------------------------------------------------+ Best States ------------- Heat Dissipation 25 Energy Generation 14 Energy Capacity 160 Matter Stores 300 Matter Capacity 300 Sight Range 16 Terrain Scan Range 16 Terrain Scan Density 10 Evasion (%) 55 Recoil Reduction 2 Authchip Count 1 Item Schematics ----------------- None Robot Schematics ------------------ None Fabricated ------------ Nothing Alien Tech Used ----------------- None Achievements -------------- None Challenges ------------ None Game ------ Seed StoragePhasingScreen Manual? 0 Play Time 00:11:36 Cumulative 113.7 hours Start 2024.11.18 @ 20:12:54 End 2024.11.18 @ 20:22:47 Sessions 1 Manual Loads 0 Difficulty Rogue Special Mode None Game No. 208 Rogue 208 Adventurer 0 Explorer 0 Win Type - Total 0 Types 0/0/0/0/0/0/0/0/0 Lore% 42 Gallery% 40 Achievement% 35 Wizard Run 0 Options --------- Layout 0 ASCII 0 Keyboard 0 Movement Mouse Keybinds 0 Fullscreen 1 Font 24/Smallcaps Map View 91x25 Zoom Use 94% Tactical HUD 1 Map Filters NONE Filters NONE Steam 1 RUN: 91d70990-3f90-4892-8ab0-c9322265983c